fUST/lending_fUST_20250831
["ID","MTS","AMOUNT","RATE_DAILY","PERIOD"]
[382471461,1756639841299,-480.94,0.00017528,2]
[382471463,1756639841308,-480.0,0.00017528,2]
[382471465,1756639841318,-480.0,0.00017528,2]
[382471467,1756639841327,-480.0,0.00017528,2]
[382471469,1756639841337,-4682.5,0.00017528,2]
[382471470,1756639841348,-200.0,0.00017529,10]
[382471473,1756639841358,-360485.7764418,0.00017529,2]
[382471475,1756639841367,-261.0,0.00017542,2]
[382471477,1756639841378,-1360.00050872,0.00017574,2]
[382471478,1756639841388,-316.0,0.00017575,2]
[382471480,1756639841398,-1000.0,0.00017589,2]
[382471482,1756639841407,-1000.0,0.00017589,2]
[382471484,1756639841417,-1000.0,0.00017589,2]
[382471486,1756639841426,-1000.0,0.00017589,2]
[382471488,1756639841436,-1000.0,0.00017589,2]
[382471490,1756639841445,-1000.0,0.00017589,2]
[382471492,1756639841455,-1000.0,0.00017589,2]
[382471494,1756639841464,-1000.0,0.00017589,2]
[382471496,1756639841474,-1000.0,0.00017589,2]
[382471498,1756639841484,-1000.0,0.00017589,2]
[382471500,1756639841493,-1000.0,0.00017589,2]
[382471502,1756639841503,-1000.0,0.00017589,2]
[382471504,1756639841514,-1000.0,0.00017589,2]
[382471506,1756639841524,-1000.0,0.00017589,2]
[382471508,1756639841534,-1000.0,0.00017589,2]
[382471510,1756639841544,-1000.0,0.00017589,2]
[382471513,1756639841553,-1000.0,0.00017589,2]
[382471515,1756639841563,-1000.0,0.00017589,2]
[382471517,1756639841572,-720.78824563,0.00017589,2]
[382471519,1756639841582,-168.0,0.0001759,2]
[382471521,1756639841592,-151.0,0.000176,2]
[382471523,1756639841601,-151.0,0.000176,2]
[382471524,1756639841610,-151.0,0.000176,2]
[382471526,1756639841620,-3028.397421,0.0001761,2]
[382471528,1756639841630,-2014.0,0.0001761,2]
[382471530,1756639841639,-533.25,0.00017626,2]
[382471532,1756639841651,-6863.46,0.00017626,2]
[382471534,1756639841661,-1243.99,0.00017626,2]
[382471536,1756639841671,-2273.44,0.00017626,2]
[382471538,1756639841680,-2385.19,0.00017626,2]
[382471540,1756639841690,-480.0,0.00017626,2]
[382471542,1756639841700,-882.2,0.00017626,2]
[382471544,1756639841710,-2155.02,0.00017626,2]
[382471546,1756639841721,-481.182224,0.00017626,2]
[382471548,1756639841731,-4607.93,0.00017626,2]
[382471550,1756639841740,-1473.14,0.00017626,2]
[382471552,1756639841751,-480.0,0.00017626,2]
[382471554,1756639841760,-2642.58,0.00017626,2]
[382471556,1756639841770,-1092.28,0.00017626,2]
[382471558,1756639841779,-268.76781147,0.00017627,2]
[382471560,1756639841789,-480.0,0.00017627,2]
[382471562,1756639841798,-480.0,0.00017627,2]
[382471564,1756639841807,-1550.12,0.00017627,2]
[382471566,1756639841816,-923.58,0.00017627,2]
[382471568,1756639841826,-480.0,0.00017627,2]
[382471570,1756639841835,-496.53,0.00017627,2]
[382471572,1756639841846,-480.0,0.00017627,2]
[382471574,1756639841855,-1041.77,0.00017627,2]
[382471576,1756639841864,-445.54626521,0.00017627,2]
[382471578,1756639841874,-1297.72,0.00017627,2]
[382471580,1756639841883,-778.0,0.00017627,2]
[382471582,1756639841893,-480.0,0.00017627,2]
[382471584,1756639841902,-480.0,0.00017627,2]
[382471586,1756639841912,-2071.86,0.00017627,2]
[382471588,1756639841922,-480.0,0.00017627,2]
[382471590,1756639841932,-480.0,0.00017627,2]
[382471592,1756639841941,-650.9,0.00017627,2]
[382471594,1756639841950,-601.76,0.00017627,2]
[382471596,1756639841960,-723.21,0.00017627,2]
[382471598,1756639841969,-500.0,0.00017627,2]
[382471600,1756639841978,-151.61138015,0.00017627,2]
[382471602,1756639841987,-154.81963238,0.00017627,2]
[382471604,1756639841996,-480.0,0.00017627,2]
[382471606,1756639842007,-151.0,0.00017627,2]
[382471608,1756639842016,-151.0,0.00017627,2]
[382471609,1756639842026,-201.51520989,0.00017627,2]
[382471611,1756639842035,-151.0,0.00017627,2]
[382471613,1756639842045,-151.00466912,0.00017627,2]
[382471615,1756639842054,-272.23210294,0.00017627,2]
[382471617,1756639842064,-546.59,0.00017627,2]
[382471619,1756639842073,-1949.26,0.00017627,2]
[382471621,1756639842083,-1578.77,0.00017627,2]
[382471623,1756639842092,-480.0,0.00017627,2]
[382471625,1756639842102,-480.0,0.00017627,2]
[382471627,1756639842111,-480.0,0.00017627,2]
[382471629,1756639842121,-1693.91,0.00017627,2]
[382471631,1756639842131,-480.0,0.00017627,2]
[382471633,1756639842141,-1562.44,0.00017627,2]
[382471635,1756639842150,-480.0,0.00017627,2]
[382471637,1756639842159,-480.0,0.00017627,2]
[382471639,1756639842169,-480.0,0.00017627,2]
[382471641,1756639842178,-480.0,0.00017627,2]
[382471643,1756639842187,-638.49,0.00017627,2]
[382471645,1756639842197,-887.51,0.00017627,2]
[382471647,1756639842207,-480.0,0.00017627,2]
[382471649,1756639842216,-847.23,0.00017627,2]
[382471651,1756639842227,-480.0,0.00017627,2]
[382471653,1756639842236,-822.0,0.00017627,2]
[382471655,1756639842246,-480.72266844,0.00017627,2]
[382471657,1756639842255,-721.32,0.00017627,2]
[382471659,1756639842264,-1464.13,0.00017627,2]
[382471660,1756639842273,-1569.43,0.00017627,2]
[382471661,1756639842282,-547.59,0.00017627,2]
[382471662,1756639842292,-480.0,0.00017627,2]
[382471663,1756639842302,-1455.08,0.00017627,2]
[382471664,1756639842311,-567.49,0.00017627,2]
[382471665,1756639842321,-480.0,0.00017627,2]
[382471666,1756639842331,-1815.96,0.00017627,2]
[382471667,1756639842340,-481.80391927,0.00017627,2]
[382471668,1756639842349,-1603.31,0.00017627,2]
[382471669,1756639842358,-480.0,0.00017627,2]
[382471670,1756639842368,-1973.57,0.00017627,2]
[382471671,1756639842378,-706.43,0.00017627,2]
[382471672,1756639842388,-411.47985354,0.00017627,2]
[382471673,1756639842398,-480.0,0.00017627,2]
[382471674,1756639842407,-480.0,0.00017627,2]
[382471675,1756639842416,-500.74,0.00017627,2]
[382471676,1756639842425,-480.0,0.00017627,2]
[382471677,1756639842434,-480.0,0.00017627,2]
[382471678,1756639842443,-504.98,0.00017627,2]
[382471679,1756639842453,-500.0,0.00017629,2]
[382471680,1756639842462,-480.0,0.00017629,2]
[382471681,1756639842471,-480.0,0.00017629,2]
[382471682,1756639842480,-480.0,0.00017629,2]
[382471683,1756639842491,-481.85753423,0.00017629,2]
[382471685,1756639842500,-480.0,0.00017629,2]
[382471687,1756639842510,-480.0,0.00017629,2]
[382471689,1756639842519,-155.96891171,0.00017629,2]
[382471691,1756639842528,-480.0,0.00017629,2]
[382471693,1756639842537,-480.0,0.00017629,2]
[382471695,1756639842546,-480.0,0.00017629,2]
[382471697,1756639842556,-480.0,0.00017629,2]
[382471699,1756639842565,-480.0,0.00017629,2]
[382471701,1756639842574,-480.0,0.00017629,2]
[382471703,1756639842584,-480.0,0.00017629,2]
[382471705,1756639842595,-480.0,0.00017629,2]
[382471707,1756639842604,-480.0,0.00017629,2]
[382471709,1756639842614,-486.6603232,0.00017629,2]
[382471711,1756639842624,-1845.48,0.00017629,2]
[382471713,1756639842633,-480.0,0.00017629,2]
[382471716,1756639842643,-502.79,0.00017629,2]
[382471718,1756639842654,-480.0,0.00017629,2]
[382471720,1756639842665,-480.0,0.00017629,2]
[382471721,1756639842673,-481.38064116,0.00017629,2]
[382471723,1756639842683,-480.0,0.00017629,2]
[382471725,1756639842692,-1734.94,0.00017629,2]
[382471727,1756639842703,-480.0,0.00017629,2]
[382471729,1756639842712,-480.0,0.00017629,2]
[382471731,1756639842721,-480.0,0.00017629,2]
[382471733,1756639842731,-480.0,0.00017629,2]
[382471735,1756639842741,-457.56722464,0.00017629,2]
[382471737,1756639842750,-480.0,0.00017629,2]
[382471740,1756639842759,-480.0,0.00017629,2]
[382471742,1756639842769,-480.0,0.00017629,2]
[382471744,1756639842779,-480.0,0.00017629,2]
[382471746,1756639842788,-480.0,0.00017629,2]
[382471748,1756639842798,-173.13617814,0.00017629,2]
[382471750,1756639842807,-480.0,0.00017629,2]
[382471752,1756639842816,-812.35,0.00017629,2]
[382471754,1756639842825,-480.0,0.00017629,2]
[382471756,1756639842835,-480.0,0.00017629,2]
[382471758,1756639842844,-480.0,0.00017629,2]
[382471760,1756639842853,-480.0,0.00017629,2]
[382471762,1756639842863,-514.23,0.00017629,2]
[382471764,1756639842873,-480.0,0.00017629,2]
[382471766,1756639842883,-1105.26,0.00017629,2]
[382471768,1756639842892,-480.0,0.00017629,2]
[382471770,1756639842901,-880.48,0.00017629,2]
[382471772,1756639842911,-1033.69,0.00017629,2]
[382471774,1756639842921,-480.0,0.00017629,2]
[382471776,1756639842932,-480.0,0.00017629,2]
[382471778,1756639842942,-480.0,0.00017629,2]
[382471780,1756639842951,-480.0,0.00017629,2]
[382471782,1756639842961,-534.67,0.00017629,2]
[382471784,1756639842970,-923.92,0.00017629,2]
[382471786,1756639842979,-555.84,0.00017629,2]
[382471788,1756639842988,-480.0,0.00017629,2]
[382471790,1756639842997,-480.0,0.00017629,2]
[382471792,1756639843007,-1000.0,0.00017629,2]
[382471794,1756639843016,-480.0,0.00017629,2]
[382471796,1756639843025,-480.0,0.00017629,2]
[382471798,1756639843035,-480.88586375,0.00017629,2]
[382471800,1756639843044,-480.0,0.00017629,2]
[382471802,1756639843053,-480.0,0.00017629,2]
[382471804,1756639843063,-480.0,0.00017629,2]
[382471806,1756639843072,-480.0,0.00017629,2]
[382471808,1756639843081,-538.7,0.00017629,2]
[382471810,1756639843090,-480.0,0.00017629,2]
[382471812,1756639843100,-500.0,0.00017629,2]
[382471814,1756639843110,-480.0,0.00017629,2]
[382471816,1756639843120,-480.0,0.00017629,2]
[382471818,1756639843130,-480.0,0.00017629,2]
[382471820,1756639843139,-480.0,0.00017629,2]
[382471822,1756639843149,-480.0,0.00017629,2]
[382471824,1756639843159,-481.40225443,0.00017629,2]
[382471826,1756639843168,-1129.79,0.00017629,2]
[382471828,1756639843177,-480.0,0.00017629,2]
[382471830,1756639843187,-586.76,0.00017629,2]
[382471832,1756639843196,-770.34,0.00017629,2]
[382471834,1756639843206,-480.0,0.00017629,2]
[382471836,1756639843215,-703.32,0.00017629,2]
[382471838,1756639843226,-480.0,0.00017629,2]
[382471840,1756639843235,-480.0,0.00017629,2]
[382471842,1756639843244,-480.0,0.00017629,2]
[382471860,1756639843411,-480.0,0.00017629,2]
[382471862,1756639843425,-740.8,0.00017629,2]
[382471864,1756639843438,-789.46,0.00017629,2]
[382471866,1756639843448,-1587.95,0.00017629,2]
[382471868,1756639843458,-480.0,0.00017629,2]
[382471870,1756639843467,-350.36287307,0.00017629,2]
[382471872,1756639843476,-480.0,0.00017629,2]
[382471874,1756639843485,-480.0,0.00017629,2]
[382471876,1756639843494,-480.0,0.00017629,2]
[382471878,1756639843504,-590.8,0.00017629,2]
[382471881,1756639843514,-480.0,0.00017629,2]
[382471883,1756639843523,-684.59,0.00017629,2]
[382471885,1756639843532,-480.0,0.00017629,2]
[382471887,1756639843541,-1551.5,0.00017629,2]
[382471889,1756639843551,-480.0,0.00017629,2]
[382471891,1756639843560,-571.52321439,0.00017629,2]
[382471893,1756639843569,-480.0,0.00017629,2]
[382471895,1756639843579,-153.83075818,0.00017629,2]
[382471897,1756639843588,-480.0,0.00017629,2]
[382471899,1756639843598,-596.24306652,0.00017629,2]
[382471901,1756639843608,-480.0,0.00017629,2]
[382471903,1756639843617,-480.0,0.00017629,2]
[382471905,1756639843627,-480.0,0.00017629,2]
[382471907,1756639843636,-480.0,0.00017629,2]
[382471909,1756639843646,-480.0,0.00017629,2]
[382471911,1756639843659,-1550.77,0.00017629,2]
[382471913,1756639843668,-480.32440113,0.00017629,2]
[382471915,1756639843677,-480.0,0.00017629,2]
[382471917,1756639843686,-480.0,0.00017629,2]
[382471919,1756639843696,-480.0,0.00017629,2]
[382471921,1756639843706,-480.0,0.00017629,2]
[382471923,1756639843715,-480.0,0.00017629,2]
[382471925,1756639843724,-480.0,0.00017629,2]
[382471927,1756639843734,-1733.66,0.00017629,2]
[382471929,1756639843743,-480.0,0.00017629,2]
[382471931,1756639843752,-480.0,0.00017629,2]
[382471933,1756639843761,-480.0,0.00017629,2]
[382471935,1756639843771,-572.76,0.00017629,2]
[382471937,1756639843781,-836.71,0.00017629,2]
[382471938,1756639843791,-480.0,0.00017629,2]
[382471939,1756639843800,-607.24,0.00017629,2]
[382471941,1756639843809,-571.99,0.00017629,2]
[382471942,1756639843819,-480.0,0.00017629,2]
[382471944,1756639843828,-481.29,0.00017629,2]
[382471945,1756639843837,-480.0,0.00017629,2]
[382471947,1756639843847,-519.29,0.00017629,2]
[382471948,1756639843855,-572.28,0.00017629,2]
[382471950,1756639843863,-480.0,0.00017629,2]
[382471951,1756639843870,-480.0,0.00017629,2]
[382471953,1756639843880,-480.0,0.00017629,2]
[382471954,1756639843887,-480.0,0.00017629,2]
[382471956,1756639843896,-480.0,0.00017629,2]
[382471957,1756639843905,-881.51,0.00017629,2]
[382471959,1756639843915,-480.0,0.00017629,2]
[382471960,1756639843924,-581.67,0.00017629,2]
[382471962,1756639843933,-481.60340813,0.00017629,2]
[382471963,1756639843943,-858.4,0.00017629,2]
[382471965,1756639843952,-675.39,0.00017629,2]
[382471966,1756639843961,-480.0,0.00017629,2]
[382471968,1756639843971,-481.51570582,0.00017629,2]
[382471969,1756639843980,-481.33495109,0.00017629,2]
[382471971,1756639843990,-480.0,0.00017629,2]
[382471973,1756639844000,-1000.0,0.00017629,2]
[382471974,1756639844009,-480.0,0.00017629,2]
[382471976,1756639844018,-481.19134569,0.00017629,2]
[382471978,1756639844027,-480.0,0.00017629,2]
[382471981,1756639844036,-480.0,0.00017629,2]
[382471983,1756639844045,-503.8,0.00017629,2]
[382471986,1756639844055,-480.0,0.00017629,2]
[382471988,1756639844064,-480.0,0.00017629,2]
[382471990,1756639844073,-424.23151174,0.00017629,2]
[382471993,1756639844082,-586.48,0.00017629,2]
[382471996,1756639844091,-480.0,0.00017629,2]
[382471997,1756639844100,-500.0,0.00017629,2]
[382471999,1756639844110,-480.0,0.00017629,2]
[382472000,1756639844119,-480.0,0.00017629,2]
[382472002,1756639844129,-480.0,0.00017629,2]
[382472004,1756639844139,-480.0,0.00017629,2]
[382472005,1756639844148,-480.0,0.00017629,2]
[382472007,1756639844158,-867.44,0.00017629,2]
[382472008,1756639844167,-480.0,0.00017629,2]
[382472010,1756639844176,-238.03301617,0.00017629,2]
[382472011,1756639844185,-480.0,0.00017629,2]
[382472013,1756639844194,-480.0,0.00017629,2]
[382472015,1756639844204,-480.0,0.00017629,2]
[382472016,1756639844214,-481.37312937,0.00017629,2]
[382472018,1756639844225,-480.0,0.00017629,2]
[382472019,1756639844234,-480.90901929,0.00017629,2]
[382472020,1756639844246,-480.0,0.00017629,2]
[382472021,1756639844255,-480.77248224,0.00017629,2]
[382472022,1756639844265,-480.73,0.00017629,2]
[382472023,1756639844274,-1399.32,0.00017629,2]
[382472024,1756639844283,-966.64,0.00017629,2]
[382472025,1756639844292,-177.82874049,0.00017629,2]
[382472026,1756639844301,-480.0,0.00017629,2]
[382472027,1756639844311,-480.0,0.00017629,2]
[382472028,1756639844320,-580.87,0.00017629,2]
[382472029,1756639844330,-659.58,0.00017629,2]
[382472030,1756639844339,-480.0,0.00017629,2]
[382472031,1756639844348,-480.41918539,0.00017629,2]
[382472032,1756639844357,-480.0,0.00017629,2]
[382472033,1756639844366,-500.0,0.00017629,2]
[382472034,1756639844376,-480.0,0.00017629,2]
[382472035,1756639844385,-480.0,0.00017629,2]
[382472036,1756639844395,-480.0,0.00017629,2]
[382472037,1756639844404,-480.0,0.00017629,2]
[382472038,1756639844413,-480.0,0.00017629,2]
[382472039,1756639844423,-1038.46,0.00017629,2]
[382472040,1756639844432,-480.0,0.00017629,2]
[382472041,1756639844445,-480.0,0.00017629,2]
[382472042,1756639844454,-480.0,0.00017629,2]
[382472043,1756639844463,-1260.41,0.00017629,2]
[382472044,1756639844473,-480.0,0.00017629,2]
[382472045,1756639844487,-480.0,0.00017629,2]
[382472046,1756639844499,-564.21,0.00017629,2]
[382472047,1756639844508,-480.0,0.00017629,2]
[382472048,1756639844518,-480.0,0.00017629,2]
[382472049,1756639844527,-653.73,0.00017629,2]
[382472050,1756639844536,-585.33,0.00017629,2]
[382472051,1756639844545,-484.64387556,0.00017629,2]
[382472052,1756639844555,-504.7,0.00017629,2]
[382472053,1756639844564,-480.0,0.00017629,2]
[382472054,1756639844574,-582.99,0.00017629,2]
[382472055,1756639844583,-480.0,0.00017629,2]
[382472056,1756639844592,-480.0,0.00017629,2]
[382472057,1756639844601,-481.19532937,0.00017629,2]
[382472058,1756639844610,-151.0,0.00017629,2]
[382472059,1756639844619,-151.0,0.00017629,2]
[382472060,1756639844630,-151.0,0.00017629,2]
[382472061,1756639844639,-480.0,0.00017629,2]
[382472062,1756639844648,-618.42,0.00017629,2]
[382472063,1756639844663,-151.0,0.00017629,2]
[382472064,1756639844672,-480.0,0.00017629,2]
[382472065,1756639844681,-151.0,0.00017629,2]
[382472066,1756639844690,-151.0,0.00017629,2]
[382472067,1756639844699,-279.423575,0.00017629,2]
[382472068,1756639844709,-151.0,0.00017629,2]
[382472069,1756639844718,-151.0,0.00017629,2]
[382472070,1756639844727,-481.01038569,0.00017629,2]
[382472071,1756639844737,-496.7,0.00017629,2]
[382472072,1756639844747,-480.0,0.00017629,2]
[382472073,1756639844756,-151.0,0.00017629,2]
[382472074,1756639844765,-151.0,0.00017629,2]
[382472075,1756639844775,-754.46,0.00017629,2]
[382472076,1756639844784,-151.0,0.00017629,2]
[382472077,1756639844794,-151.0,0.00017629,2]
[382472078,1756639844804,-598.65,0.00017629,2]
[382472079,1756639844814,-480.0,0.00017629,2]
[382472080,1756639844823,-480.0,0.00017629,2]
[382472081,1756639844833,-902.36,0.00017629,2]
[382472082,1756639844842,-481.08117347,0.00017629,2]
[382472083,1756639844852,-480.0,0.00017629,2]
[382472084,1756639844862,-480.81705646,0.00017629,2]
[382472085,1756639844872,-151.0,0.00017629,2]
[382472086,1756639844883,-480.0,0.00017629,2]
[382472087,1756639844893,-165.925572,0.00017629,2]
[382472088,1756639844902,-921.53,0.00017629,2]
[382472089,1756639844911,-185.876676,0.00017629,2]
[382472090,1756639844921,-185.876676,0.00017629,2]
[382472091,1756639844930,-185.876676,0.00017629,2]
[382472092,1756639844939,-185.876676,0.00017629,2]
[382472093,1756639844949,-151.0,0.00017629,2]
[382472094,1756639844958,-156.946248,0.00017629,2]
[382472095,1756639844967,-156.946248,0.00017629,2]
[382472096,1756639844977,-151.0,0.00017629,2]
[382472097,1756639844986,-480.0,0.00017629,2]
[382472098,1756639844996,-156.946248,0.00017629,2]
[382472099,1756639845006,-151.0,0.00017629,2]
[382472100,1756639845016,-156.946248,0.00017629,2]
[382472101,1756639845025,-151.943352,0.00017629,2]
[382472102,1756639845035,-619.536546,0.00017629,2]
[382472103,1756639845044,-151.0,0.00017629,2]
[382472104,1756639845054,-151.0,0.00017629,2]
[382472105,1756639845063,-151.0,0.00017629,2]
[382472106,1756639845072,-619.536546,0.00017629,2]
[382472107,1756639845082,-151.0,0.00017629,2]
[382472108,1756639845091,-151.0,0.00017629,2]
[382472109,1756639845101,-619.536546,0.00017629,2]
[382472110,1756639845110,-619.536546,0.00017629,2]
[382472111,1756639845119,-2898.88,0.0001763,2]
[382472112,1756639845131,-500.0,0.0001763,2]
[382472113,1756639845140,-500.0,0.0001763,2]
[382472114,1756639845149,-500.0,0.0001763,2]
[382472115,1756639845159,-500.0,0.0001763,2]
[382472116,1756639845168,-500.0,0.0001763,2]
[382472117,1756639845177,-500.0,0.0001763,2]
[382472118,1756639845186,-500.0,0.0001763,2]
[382472119,1756639845195,-500.0,0.0001763,2]
[382472120,1756639845205,-500.0,0.0001763,2]
[382472121,1756639845214,-500.0,0.0001763,2]
[382472122,1756639845223,-500.0,0.0001763,2]
[382472123,1756639845232,-197.59145903,0.0001763,2]
[382472124,1756639845242,-1737.4,0.0001763,2]
[382472125,1756639845251,-930.35,0.0001763,2]
[382472126,1756639845261,-1853.64,0.0001763,2]
[382472127,1756639845270,-1059.09,0.0001763,2]
[382472128,1756639845280,-628.21,0.0001763,2]
[382472129,1756639845290,-628.21,0.0001763,2]
[382472130,1756639845299,-628.21,0.0001763,2]
[382472131,1756639845309,-628.21,0.0001763,2]
[382472132,1756639845318,-628.21,0.0001763,2]
[382472133,1756639845327,-628.21,0.0001763,2]
[382472134,1756639845337,-628.21,0.0001763,2]
[382472135,1756639845346,-628.21,0.0001763,2]
[382472136,1756639845355,-628.21,0.0001763,2]
[382472137,1756639845365,-628.21,0.0001763,2]
[382472138,1756639845375,-628.21,0.0001763,2]
[382472139,1756639845384,-628.21,0.0001763,2]
[382472140,1756639845393,-480.0,0.0001763,2]
[382472141,1756639845403,-1223.71,0.0001763,2]
[382472142,1756639845412,-480.0,0.0001763,2]
[382472143,1756639845422,-481.47897705,0.0001763,2]
[382472144,1756639845431,-831.83,0.0001763,2]
[382472145,1756639845440,-496.54,0.0001763,2]
[382472146,1756639845450,-1076.16,0.0001763,2]
[382472147,1756639845459,-961.35,0.0001763,2]
[382472148,1756639845469,-480.0,0.0001763,2]
[382472149,1756639845479,-500.0,0.0001763,2]
[382472150,1756639845488,-500.0,0.0001763,2]
[382472151,1756639845498,-500.0,0.0001763,2]
[382472152,1756639845507,-500.0,0.0001763,2]
[382472153,1756639845518,-500.0,0.0001763,2]
[382472154,1756639845528,-500.0,0.0001763,2]
[382472155,1756639845537,-482.59720954,0.0001763,2]
[382472156,1756639845546,-1317.7,0.0001763,2]
[382472157,1756639845556,-872.85,0.0001763,2]
[382472158,1756639845566,-480.0,0.0001763,2]
[382472159,1756639845575,-480.0,0.0001763,2]
[382472160,1756639845585,-1284.0,0.0001763,2]
[382472161,1756639845595,-2163.1,0.0001763,2]
[382472162,1756639845604,-480.0,0.0001763,2]
[382472163,1756639845614,-480.0,0.0001763,2]
[382472164,1756639845623,-995.45,0.0001763,2]
[382472165,1756639845633,-480.0,0.0001763,2]
[382472166,1756639845643,-168.0,0.00017664,2]
[382472167,1756639845653,-500.0,0.00017673,2]
[382472168,1756639845666,-502.15147976,0.00017673,2]
[382472169,1756639845676,-500.0,0.00017673,2]
[382472170,1756639845685,-500.4653867,0.00017673,2]
[382472171,1756639845696,-500.0,0.00017673,2]
[382472172,1756639845706,-500.0,0.00017673,2]
[382472173,1756639845716,-500.0,0.00017673,2]
[382472174,1756639845726,-500.0,0.00017673,2]
[382472175,1756639845736,-500.0,0.00017673,2]
[382472177,1756639845746,-500.0,0.00017673,2]
[382472178,1756639845757,-500.97484638,0.00017673,2]
[382472179,1756639845767,-500.0,0.00017673,2]
[382472180,1756639845778,-213.6364315,0.00017673,2]
[382472181,1756639845789,-500.0,0.00017673,2]
[382472182,1756639845799,-500.0,0.00017673,2]
[382472183,1756639845808,-213.79428328,0.00017673,2]
[382472184,1756639845818,-181.91700237,0.00017673,2]
[382472185,1756639845828,-500.0,0.00017673,2]
[382472186,1756639845839,-500.0,0.00017673,2]
[382472187,1756639845849,-501.21878673,0.00017673,2]
[382472188,1756639845858,-500.0,0.00017673,2]
[382472190,1756639845868,-500.0,0.00017673,2]
[382472192,1756639845878,-500.0,0.00017673,2]
[382472194,1756639845888,-500.0,0.00017673,2]
[382472196,1756639845898,-500.0,0.00017673,2]
[382472198,1756639845907,-500.0,0.00017673,2]
[382472200,1756639845917,-500.0,0.00017673,2]
[382472202,1756639845926,-500.0,0.00017673,2]
[382472204,1756639845935,-500.0,0.00017673,2]
[382472206,1756639845944,-160.77188662,0.00017673,2]
[382472208,1756639845954,-500.0,0.00017673,2]
[382472210,1756639845963,-158.65713755,0.00017673,2]
[382472212,1756639845972,-500.39149769,0.00017673,2]
[382472214,1756639845981,-500.0,0.00017673,2]
[382472215,1756639845991,-504.83033594,0.00017673,2]
[382472217,1756639845999,-500.0,0.00017673,2]
[382472219,1756639846009,-500.0,0.00017673,2]
[382472220,1756639846019,-500.0,0.00017673,2]
[382472221,1756639846028,-500.0,0.00017673,2]
[382472222,1756639846038,-151.0,0.000177,2]
[382472223,1756639846047,-151.0,0.000177,2]
[382472224,1756639846056,-2014.0,0.00017715,2]
[382472225,1756639846066,-628.21,0.00017728,2]
[382472226,1756639846075,-628.21,0.00017728,2]
[382472227,1756639846085,-628.21,0.00017728,2]
[382472228,1756639846095,-628.21,0.00017728,2]
[382472229,1756639846106,-628.21,0.00017728,2]
[382472230,1756639846116,-565.23,0.00017729,2]
[382472231,1756639846126,-568.55,0.00017729,2]
[382472232,1756639846138,-906.01,0.00017729,2]
[382472233,1756639846147,-1167.98,0.00017729,2]
[382472234,1756639846156,-1358.67,0.00017729,2]
[382472235,1756639846166,-480.0,0.00017729,2]
[382472236,1756639846176,-1359.56,0.00017729,2]
[382472237,1756639846186,-656.14,0.00017729,2]
[382472238,1756639846195,-628.21,0.00017729,2]
[382472239,1756639846205,-628.21,0.00017729,2]
[382472240,1756639846214,-628.21,0.00017729,2]
[382472241,1756639846223,-628.21,0.00017729,2]
[382472242,1756639846233,-628.21,0.00017729,2]
[382472243,1756639846242,-628.21,0.00017729,2]